[Event "Late-Titled-Tuesday-Blitz-September-12-2023"]
[Site "Chess.com"]
[Date "2023.09.12"]
[Round "11"]
[White "Hilary46"]
[Black "KNVB"]
[Result "1-0"]
[WhiteElo "2568"]
[BlackElo "2738"]
[TimeControl "180+1"]
[EndTime "16:02:42 PDT"]
[Termination "Hilary46 won by checkmate"]

1. e4 {[%clk 0:02:59.3]} 1... c5 {[%clk 0:02:57.4]} 2. Nf3 {[%clk 0:02:59.6]}
2... e6 {[%clk 0:02:57.5]} 3. d4 {[%clk 0:03:00.1]} 3... cxd4 {[%clk 0:02:58.4]}
4. Nxd4 {[%clk 0:03:00.8]} 4... Nc6 {[%clk 0:02:58.9]} 5. Nc3 {[%clk 0:03:01.2]}
5... Qc7 {[%clk 0:02:59.1]} 6. Be3 {[%clk 0:03:01.5]} 6... a6 {[%clk 0:02:59.5]}
7. Qd2 {[%clk 0:03:01.9]} 7... b5 {[%clk 0:02:59.9]} 8. Nxc6 {[%clk 0:03:00.5]}
8... Qxc6 {[%clk 0:03:00.2]} 9. f3 {[%clk 0:03:00.7]} 9... Bb7 {[%clk
0:03:00.7]} 10. O-O-O {[%clk 0:02:59.8]} 10... Rc8 {[%clk 0:03:00.8]} 11. Ne2
{[%clk 0:02:52.9]} 11... Nf6 {[%clk 0:02:54.8]} 12. Nd4 {[%clk 0:02:52.1]} 12...
Qc7 {[%clk 0:02:55.1]} 13. g4 {[%clk 0:02:47.8]} 13... d5 {[%clk 0:02:33.1]} 14.
e5 {[%clk 0:02:44.1]} 14... Nd7 {[%clk 0:02:32.1]} 15. f4 {[%clk 0:02:44.3]}
15... Nc5 {[%clk 0:02:24.3]} 16. Bd3 {[%clk 0:02:42]} 16... Ne4 {[%clk
0:02:05.4]} 17. Bxe4 {[%clk 0:02:41.7]} 17... dxe4 {[%clk 0:02:06]} 18. Kb1
{[%clk 0:02:39.6]} 18... Bd5 {[%clk 0:01:39.6]} 19. Rhf1 {[%clk 0:02:18.5]}
19... Qc4 {[%clk 0:01:13.5]} 20. b3 {[%clk 0:01:42.8]} 20... Qc3 {[%clk
0:01:13.3]} 21. f5 {[%clk 0:01:43.3]} 21... Ba3 {[%clk 0:00:41.8]} 22. Qxc3
{[%clk 0:01:41.6]} 22... Rxc3 {[%clk 0:00:42.7]} 23. Bc1 {[%clk 0:01:10.2]}
23... Bc5 {[%clk 0:00:31.5]} 24. Ne2 {[%clk 0:00:54.3]} 24... Rf3 {[%clk
0:00:24.2]} 25. Nf4 {[%clk 0:00:53.7]} 25... Rxf1 {[%clk 0:00:08.8]} 26. Rxf1
{[%clk 0:00:54.6]} 26... Ke7 {[%clk 0:00:09.5]} 27. Nh5 {[%clk 0:00:28.7]} 27...
exf5 {[%clk 0:00:02.2]} 28. gxf5 {[%clk 0:00:29.6]} 28... g6 {[%clk 0:00:02.4]}
29. Bg5+ {[%clk 0:00:28.3]} 29... Kd7 {[%clk 0:00:02.6]} 30. Nf6+ {[%clk
0:00:28.3]} 30... Kc6 {[%clk 0:00:03.3]} 31. Rd1 {[%clk 0:00:26.3]} 31... Rd8
{[%clk 0:00:02.5]} 32. Nxe4 {[%clk 0:00:20]} 32... Rd7 {[%clk 0:00:02.1]} 33.
Nxc5 {[%clk 0:00:17.1]} 33... Kxc5 {[%clk 0:00:03]} 34. Be3+ {[%clk 0:00:10.8]}
34... Kc6 {[%clk 0:00:03.3]} 35. f6 {[%clk 0:00:05]} 35... a5 {[%clk 0:00:01.8]}
36. Kb2 {[%clk 0:00:04.7]} 36... Be6 {[%clk 0:00:01.4]} 37. Re1 {[%clk
0:00:04.9]} 37... Rd5 {[%clk 0:00:01.2]} 38. Bf4 {[%clk 0:00:04]} 38... Rd4
{[%clk 0:00:01.2]} 39. Bg3 {[%clk 0:00:04.3]} 39... b4 {[%clk 0:00:01.2]} 40.
Bf2 {[%clk 0:00:04.1]} 40... Rd2 {[%clk 0:00:01.5]} 41. Bg3 {[%clk 0:00:04]}
41... Bf5 {[%clk 0:00:02]} 42. Rc1 {[%clk 0:00:04.4]} 42... g5 {[%clk
0:00:02.1]} 43. h4 {[%clk 0:00:02.8]} 43... g4 {[%clk 0:00:01.2]} 44. Bf4 {[%clk
0:00:03.1]} 44... Rf2 {[%clk 0:00:01.4]} 45. Bg3 {[%clk 0:00:02.7]} 45... Rg2
{[%clk 0:00:01.8]} 46. Be1 {[%clk 0:00:03]} 46... Kd5 {[%clk 0:00:01.8]} 47. a3
{[%clk 0:00:03.4]} 47... g3 {[%clk 0:00:02]} 48. axb4 {[%clk 0:00:03]} 48...
axb4 {[%clk 0:00:02.9]} 49. Bxb4 {[%clk 0:00:03.1]} 49... Re2 {[%clk 0:00:03]}
50. Ba5 {[%clk 0:00:02]} 50... Kc6 {[%clk 0:00:03.1]} 51. Bc3 {[%clk 0:00:01.8]}
51... Kd5 {[%clk 0:00:03.1]} 52. Ba5 {[%clk 0:00:02.1]} 52... Kc6 {[%clk
0:00:01.7]} 53. Bb4 {[%clk 0:00:01.7]} 53... h5 {[%clk 0:00:01.6]} 54. Bc3
{[%clk 0:00:02]} 54... Kd5 {[%clk 0:00:02]} 55. b4 {[%clk 0:00:02.1]} 55... Be4
{[%clk 0:00:01.9]} 56. b5 {[%clk 0:00:02.1]} 56... Kc5 {[%clk 0:00:02.4]} 57. e6
{[%clk 0:00:02.2]} 57... Bd5 {[%clk 0:00:01.5]} 58. e7 {[%clk 0:00:02.3]} 58...
Kxb5 {[%clk 0:00:01.8]} 59. Bd4 {[%clk 0:00:02.6]} 59... g2 {[%clk 0:00:02]} 60.
Rg1 {[%clk 0:00:02]} 60... Bc6 {[%clk 0:00:02.2]} 61. Kc3 {[%clk 0:00:02.4]}
61... Bd5 {[%clk 0:00:02]} 62. Kd3 {[%clk 0:00:02.8]} 62... Bc4+ {[%clk
0:00:02.1]} 63. Kc3 {[%clk 0:00:03.4]} 63... Bd5 {[%clk 0:00:01.9]} 64. Rd1
{[%clk 0:00:02.3]} 64... Bc6 {[%clk 0:00:02]} 65. Rd2 {[%clk 0:00:02.8]} 65...
Re4 {[%clk 0:00:01.4]} 66. Rf2 {[%clk 0:00:02]} 66... Rg4 {[%clk 0:00:01.5]} 67.
Rf5+ {[%clk 0:00:02.1]} 67... Ka6 {[%clk 0:00:01.6]} 68. Rg5 {[%clk 0:00:02.7]}
68... Rxg5 {[%clk 0:00:01.4]} 69. hxg5 {[%clk 0:00:02.8]} 69... Be8 {[%clk
0:00:02.3]} 70. Kd3 {[%clk 0:00:03]} 70... h4 {[%clk 0:00:03.1]} 71. Ke4 {[%clk
0:00:02.4]} 71... h3 {[%clk 0:00:03.1]} 72. Bg1 {[%clk 0:00:03]} 72... Kb5
{[%clk 0:00:02.7]} 73. Kf5 {[%clk 0:00:02.9]} 73... Kc6 {[%clk 0:00:02.6]} 74.
g6 {[%clk 0:00:03.3]} 74... Bd7+ {[%clk 0:00:01.9]} 75. Kg5 {[%clk 0:00:03.2]}
75... fxg6 {[%clk 0:00:02.4]} 76. f7 {[%clk 0:00:02.3]} 76... Kd5 {[%clk
0:00:02.1]} 77. f8=Q {[%clk 0:00:02.5]} 77... h2 {[%clk 0:00:02.7]} 78. Bxh2
{[%clk 0:00:02.4]} 78... Ke6 {[%clk 0:00:03]} 79. Bg1 {[%clk 0:00:02.8]} 79...
Kd5 {[%clk 0:00:03.6]} 80. e8=Q {[%clk 0:00:03.1]} 80... Kc4 {[%clk 0:00:03.4]}
81. Qxd7 {[%clk 0:00:03]} 81... Kc3 {[%clk 0:00:04.3]} 82. Qfd6 {[%clk
0:00:03.4]} 82... Kb2 {[%clk 0:00:04.5]} 83. Qd3 {[%clk 0:00:03.9]} 83... Kb1
{[%clk 0:00:04.1]} 84. Qxg6 {[%clk 0:00:04.8]} 84... Kb2 {[%clk 0:00:04.2]} 85.
Qg4 {[%clk 0:00:05.7]} 85... Kb1 {[%clk 0:00:04.2]} 86. Qxg2 {[%clk 0:00:06.4]}
86... Kb2 {[%clk 0:00:05.1]} 87. Qg4 {[%clk 0:00:07]} 87... Kc3 {[%clk 0:00:06]}
88. Q4f5 {[%clk 0:00:06.1]} 88... Kb2 {[%clk 0:00:06.7]} 89. Qff6+ {[%clk
0:00:06.8]} 89... Kc1 {[%clk 0:00:06.9]} 90. Qgf7 {[%clk 0:00:07.7]} 90... Kd2
{[%clk 0:00:07.8]} 91. c4 {[%clk 0:00:07.8]} 91... Kd3 {[%clk 0:00:08]} 92. c5
{[%clk 0:00:08.7]} 92... Kc2 {[%clk 0:00:07.8]} 93. c6 {[%clk 0:00:09.6]} 93...
Kd3 {[%clk 0:00:08.4]} 94. c7 {[%clk 0:00:10.5]} 94... Ke2 {[%clk 0:00:08.7]}
95. c8=Q {[%clk 0:00:10.6]} 95... Kd1 {[%clk 0:00:09.1]} 96. Qc1+ {[%clk
0:00:10.7]} 96... Ke2 {[%clk 0:00:09.6]} 97. Qe5+ {[%clk 0:00:10.7]} 97... Kd3
{[%clk 0:00:10.5]} 98. Qfd5# {[%clk 0:00:10.8]} 1-0

[Event "Late-Titled-Tuesday-Blitz-September-12-2023"]
[Site "Chess.com"]
[Date "2023.09.12"]
[Round "11"]
[White "karinachess1"]
[Black "Mikhal867"]
[Result "1/2-1/2"]
[WhiteElo "2614"]
[BlackElo "2471"]
[TimeControl "180+1"]
[EndTime "16:03:51 PDT"]
[Termination "Game drawn - insufficient material"]

1. d4 {[%clk 0:03:00.9]} 1... Nf6 {[%clk 0:02:58.2]} 2. c4 {[%clk 0:03:00.8]}
2... g6 {[%clk 0:02:58.6]} 3. g3 {[%clk 0:03:00.5]} 3... Bg7 {[%clk 0:02:59.1]}
4. Bg2 {[%clk 0:03:01]} 4... O-O {[%clk 0:02:59.6]} 5. Nc3 {[%clk 0:03:01.3]}
5... d6 {[%clk 0:03:00.2]} 6. e4 {[%clk 0:03:01.4]} 6... Nbd7 {[%clk 0:03:00]}
7. Nf3 {[%clk 0:03:01.3]} 7... e5 {[%clk 0:03:00.4]} 8. O-O {[%clk 0:03:01.6]}
8... c6 {[%clk 0:03:00.8]} 9. h3 {[%clk 0:03:00.6]} 9... Qb6 {[%clk 0:03:00.8]}
10. dxe5 {[%clk 0:02:24.7]} 10... dxe5 {[%clk 0:02:59.6]} 11. Qc2 {[%clk
0:02:23.6]} 11... a5 {[%clk 0:02:48.4]} 12. Be3 {[%clk 0:02:23.4]} 12... Qb4
{[%clk 0:02:47.5]} 13. b3 {[%clk 0:02:12.6]} 13... Re8 {[%clk 0:02:46.4]} 14.
Na4 {[%clk 0:01:25.3]} 14... Bf8 {[%clk 0:02:24.2]} 15. a3 {[%clk 0:01:21.9]}
15... Qe7 {[%clk 0:02:21.1]} 16. c5 {[%clk 0:01:20.4]} 16... Nh5 {[%clk
0:02:01.1]} 17. b4 {[%clk 0:01:12.2]} 17... Bg7 {[%clk 0:01:54.4]} 18. Rfd1
{[%clk 0:01:09.4]} 18... Rf8 {[%clk 0:01:46.9]} 19. Qb3 {[%clk 0:01:00.9]} 19...
Kh8 {[%clk 0:01:46.4]} 20. Rd6 {[%clk 0:00:39.1]} 20... f5 {[%clk 0:01:44.1]}
21. exf5 {[%clk 0:00:36.6]} 21... gxf5 {[%clk 0:01:43.7]} 22. Bg5 {[%clk
0:00:36.9]} 22... Bf6 {[%clk 0:01:38.6]} 23. Bxf6+ {[%clk 0:00:34.4]} 23...
Ndxf6 {[%clk 0:01:22.1]} 24. Nb6 {[%clk 0:00:31.4]} 24... Ra6 {[%clk 0:01:21.9]}
25. Re1 {[%clk 0:00:30.9]} 25... e4 {[%clk 0:01:20.9]} 26. Nd4 {[%clk
0:00:30.8]} 26... axb4 {[%clk 0:01:18.5]} 27. axb4 {[%clk 0:00:29.5]} 27... Ng7
{[%clk 0:01:18.1]} 28. Nxc8 {[%clk 0:00:27.2]} 28... Rxc8 {[%clk 0:01:17.3]} 29.
Nc2 {[%clk 0:00:15.8]} 29... Rd8 {[%clk 0:01:15.8]} 30. Red1 {[%clk 0:00:15.6]}
30... Rda8 {[%clk 0:01:10.6]} 31. Ne3 {[%clk 0:00:15.2]} 31... Ra1 {[%clk
0:01:05.5]} 32. Qb2 {[%clk 0:00:14.8]} 32... Rxd1+ {[%clk 0:01:03.7]} 33. Rxd1
{[%clk 0:00:14.6]} 33... Rd8 {[%clk 0:01:01.1]} 34. Rxd8+ {[%clk 0:00:14]} 34...
Qxd8 {[%clk 0:01:01.1]} 35. Kh2 {[%clk 0:00:14.3]} 35... Qe7 {[%clk 0:00:41.6]}
36. Qd4 {[%clk 0:00:14.1]} 36... Kg8 {[%clk 0:00:37.8]} 37. Bf1 {[%clk
0:00:13.4]} 37... Nd7 {[%clk 0:00:29.6]} 38. Bc4+ {[%clk 0:00:13.3]} 38... Kf8
{[%clk 0:00:24.1]} 39. Nxf5 {[%clk 0:00:12.8]} 39... Qf6 {[%clk 0:00:09.8]} 40.
Qxd7 {[%clk 0:00:12.9]} 40... Qxf5 {[%clk 0:00:08.5]} 41. Qd8+ {[%clk
0:00:11.7]} 41... Ne8 {[%clk 0:00:08.7]} 42. Qd4 {[%clk 0:00:06.8]} 42... Nf6
{[%clk 0:00:07]} 43. Bf1 {[%clk 0:00:06]} 43... Nd5 {[%clk 0:00:06.3]} 44. Bg2
{[%clk 0:00:06.1]} 44... Nf6 {[%clk 0:00:04.2]} 45. Qe3 {[%clk 0:00:06.3]} 45...
Qe5 {[%clk 0:00:04.3]} 46. Qh6+ {[%clk 0:00:05.6]} 46... Kg8 {[%clk 0:00:04.4]}
47. Qe3 {[%clk 0:00:05.8]} 47... Kg7 {[%clk 0:00:03.8]} 48. f3 {[%clk
0:00:05.8]} 48... Nh5 {[%clk 0:00:03.1]} 49. fxe4 {[%clk 0:00:06]} 49... Qf6
{[%clk 0:00:03]} 50. Qf3 {[%clk 0:00:05.9]} 50... Qg5 {[%clk 0:00:02.4]} 51. Qg4
{[%clk 0:00:06.1]} 51... Qxg4 {[%clk 0:00:02.3]} 52. hxg4 {[%clk 0:00:07]} 52...
Nf6 {[%clk 0:00:02.6]} 53. Bf3 {[%clk 0:00:07.6]} 53... Nd7 {[%clk 0:00:02.6]}
54. Kg2 {[%clk 0:00:07.5]} 54... Ne5 {[%clk 0:00:02.9]} 55. Be2 {[%clk
0:00:07.9]} 55... Kf6 {[%clk 0:00:03.3]} 56. Kf2 {[%clk 0:00:08.3]} 56... Nf7
{[%clk 0:00:01.9]} 57. Ke3 {[%clk 0:00:08.3]} 57... Ke5 {[%clk 0:00:02.5]} 58.
Bc4 {[%clk 0:00:07.7]} 58... Ng5 {[%clk 0:00:02.6]} 59. Bd3 {[%clk 0:00:06.6]}
59... h6 {[%clk 0:00:02.4]} 60. b5 {[%clk 0:00:06.8]} 60... Ne6 {[%clk
0:00:02.3]} 61. bxc6 {[%clk 0:00:05.8]} 61... bxc6 {[%clk 0:00:02.6]} 62. Ba6
{[%clk 0:00:02.8]} 62... Nxc5 {[%clk 0:00:02.7]} 63. Bc8 {[%clk 0:00:01.2]}
63... Nxe4 {[%clk 0:00:02.7]} 64. Bb7 {[%clk 0:00:01.5]} 64... Nf6 {[%clk
0:00:02.1]} 65. Bxc6 {[%clk 0:00:01.3]} 65... Nxg4+ {[%clk 0:00:02.4]} 66. Kf3
{[%clk 0:00:01.8]} 66... Nf6 {[%clk 0:00:02.8]} 67. Kg2 {[%clk 0:00:01.8]} 67...
Kf5 {[%clk 0:00:03.2]} 68. Bf3 {[%clk 0:00:02.4]} 68... Kg5 {[%clk 0:00:03.7]}
69. Kh3 {[%clk 0:00:02.8]} 69... Ng8 {[%clk 0:00:04.3]} 70. Kg2 {[%clk
0:00:03.2]} 70... Ne7 {[%clk 0:00:04.8]} 71. Kh3 {[%clk 0:00:03.5]} 71... Ng6
{[%clk 0:00:05.2]} 72. Kg2 {[%clk 0:00:03.9]} 72... Ne5 {[%clk 0:00:05.8]} 73.
Be2 {[%clk 0:00:04.5]} 73... Nf7 {[%clk 0:00:05.6]} 74. Kf2 {[%clk 0:00:05]}
74... Nd6 {[%clk 0:00:06]} 75. Ke3 {[%clk 0:00:04.9]} 75... Nf5+ {[%clk
0:00:06.4]} 76. Kf2 {[%clk 0:00:05.6]} 76... Nd4 {[%clk 0:00:06.7]} 77. Bd1
{[%clk 0:00:06.1]} 77... Ne6 {[%clk 0:00:06.6]} 78. Kg2 {[%clk 0:00:06.4]} 78...
Nc5 {[%clk 0:00:06.8]} 79. Bc2 {[%clk 0:00:06.7]} 79... Ne6 {[%clk 0:00:06.7]}
80. Bb3 {[%clk 0:00:07.1]} 80... Nd4 {[%clk 0:00:07.2]} 81. Bc4 {[%clk 0:00:07]}
81... Nf5 {[%clk 0:00:06.8]} 82. Ba6 {[%clk 0:00:07.1]} 82... Ne3+ {[%clk
0:00:06.9]} 83. Kf3 {[%clk 0:00:07.4]} 83... Nd5 {[%clk 0:00:07.4]} 84. Bb7
{[%clk 0:00:07.1]} 84... Ne7 {[%clk 0:00:07.6]} 85. Ba8 {[%clk 0:00:07]} 85...
Ng6 {[%clk 0:00:07.9]} 86. Bb7 {[%clk 0:00:06.9]} 86... Ne5+ {[%clk 0:00:08]}
87. Kg2 {[%clk 0:00:07.3]} 87... h5 {[%clk 0:00:08.4]} 88. Bd5 {[%clk 0:00:07]}
88... Nd3 {[%clk 0:00:08.2]} 89. Be4 {[%clk 0:00:05.4]} 89... Ne5 {[%clk
0:00:08.1]} 90. Bd5 {[%clk 0:00:05.2]} 90... Nd7 {[%clk 0:00:08.1]} 91. Bc6
{[%clk 0:00:05]} 91... Nf6 {[%clk 0:00:08.3]} 92. Bb7 {[%clk 0:00:04.9]} 92...
Ng4 {[%clk 0:00:08.5]} 93. Ba8 {[%clk 0:00:05.1]} 93... Ne5 {[%clk 0:00:08.3]}
94. Bb7 {[%clk 0:00:04.8]} 94... Nd3 {[%clk 0:00:08.1]} 95. Ba8 {[%clk
0:00:04.8]} 95... Nc5 {[%clk 0:00:08.4]} 96. Bc6 {[%clk 0:00:04.5]} 96... Ne6
{[%clk 0:00:08.3]} 97. Ba8 {[%clk 0:00:04.4]} 97... Nd4 {[%clk 0:00:07.8]} 98.
Bb7 {[%clk 0:00:04.3]} 98... Kg4 {[%clk 0:00:07.7]} 99. Bc8+ {[%clk 0:00:04.1]}
99... Kg5 {[%clk 0:00:07.6]} 100. Bd7 {[%clk 0:00:03.7]} 100... Nc2 {[%clk
0:00:06.6]} 101. Bc6 {[%clk 0:00:03.2]} 101... Nd4 {[%clk 0:00:06.5]} 102. Bb7
{[%clk 0:00:02.7]} 102... Nf5 {[%clk 0:00:06.3]} 103. Bc8 {[%clk 0:00:02.4]}
103... Ne3+ {[%clk 0:00:06.4]} 104. Kf3 {[%clk 0:00:02.8]} 104... Nc4 {[%clk
0:00:06.5]} 105. Ba6 {[%clk 0:00:03]} 105... Ne5+ {[%clk 0:00:06.1]} 106. Kg2
{[%clk 0:00:03.6]} 106... Nf7 {[%clk 0:00:04.8]} 107. Be2 {[%clk 0:00:04.2]}
107... Nd6 {[%clk 0:00:04.6]} 108. Kf2 {[%clk 0:00:04.5]} 108... Nf5 {[%clk
0:00:04.1]} 109. Bxh5 {[%clk 0:00:03.9]} 109... Kxh5 {[%clk 0:00:04]} 110. g4+
{[%clk 0:00:04.5]} 110... Kxg4 {[%clk 0:00:04.3]} 1/2-1/2